Cogmind - Beta 13 @@@ ROGUE MODE // 2024.04.24 @ 23:33:42 Player: Tenderz Result: Destroyed by G-47 Trooper with Particle Gun Performance ------------- Evolutions (2) 1000 Regions Visited (4) 800 Robots Destroyed (53) 265 Value Destroyed (1337) 1337 Prototype IDs (4) 80 Alien Tech Used (0) 0 Bonus (0) 0 TOTAL SCORE: 3482 Bonus ------- None Cogmind --------- Core Integrity 0/550 Matter 92/300 Energy 159/160 System Corruption 0% Temperature Hot (229) Movement Rolling (135) Ox3 Location -8/Materials Parts ------- > --- POWER (1) -------- Light Nuclear Core > --- PROPULSION (2) --- Medium Treads Armored Wheel > --- UTILITY (5) ------ Improved Heat Sink Large Storage Unit Targeting Computer Light Armor Plating Hacking Suite > --- WEAPON (3) ------- Plasma Cannon Assault Cannon Assault Cannon > --- INVENTORY (15) --- Light Ion Engine Heavy Ion Engine Deuterium Engine Medium Treads Wheel Wheel Compact Wheel Sensor Array ECM Suite Improved Power Shielding Hardened Light Armor Plating Gatling Laser Gatling Laser Grenade Launcher Peak State ------------ > --- POWER ------------ Heavy Ion Engine > --- PROPULSION ------- Advanced Treads Advanced Treads > --- UTILITY ---------- Large Storage Unit Weight Redist. System Improved Targeting Computer Improved Light Armor Plating Hacking Suite > --- WEAPON ----------- Plasma Cannon Plasma Cannon Enhanced Autogun > --- INVENTORY -------- Heavy Ion Engine Heavy Ion Engine Advanced Treads Medium Treads Medium Treads Medium Treads Subdweller Optics Sensor Array Targeting Computer Improved Power Shielding Hardened Light Armor Plating Plasma Cannon Plasma Cannon Gauss Rifle Grenade Launcher [Rating: 36] Favorites ----------- Power Heavy Ion Engine Engine Heavy Ion Engine Power Core Light Nuclear Core Propulsion Wheel Treads Advanced Treads Leg Aluminum Leg Wheel Wheel Utility Sensor Array Device Sensor Array Storage Large Storage Unit Processor Improved Targeting Computer Hackware Hacking Suite Protection Improved Light Armor Plating Weapon Plasma Cannon Energy Gun Beam Rifle Energy Cannon Plasma Cannon Ballistic Gun Assault Rifle Ballistic Cannon Assault Cannon Launcher Grenade Launcher Special Weapon Mining Laser Slashing Weapon Katana Build | -11 -10 -10 -10 -8 ------- Run | Yrd Mat Min Sub Mat Slots Evolved 4 | . . . . 4 Power . | . . . . . Propulsion . | . . . . . Utility 3 | . . . . 3 Weapon 1 | . . . . 1 Parts Attached 99 | 11 7 1 8 72 Power 8 | 1 1 . 1 5 Engine 7 | 1 1 . 1 4 Core 1 | . . . . 1 Reactor . | . . . . . Propulsion 26 | 5 1 . 2 18 Treads 11 | . . . . 11 Leg 1 | 1 . . . . Wheel 14 | 4 1 . 2 7 Hover . | . . . . . Flight . | . . . . . Utility 34 | 3 2 . . 29 Device 17 | 1 2 . . 14 Storage 4 | 2 . . . 2 Processor 3 | . . . . 3 Hackware 1 | . . . . 1 Protection 9 | . . . . 9 Artifact . | . . . . . Weapon 31 | 2 3 1 5 20 Energy Gun 4 | 1 . . . 3 Energy Cannon 5 | . . . . 5 Ballistic Gun 14 | 1 2 . 4 7 Ballistic Cannon 3 | . . . . 3 Launcher 1 | . . . . 1 Special Weapon 3 | . 1 1 1 . Impact Weapon . | . . . . . Slashing Weapon 1 | . . . . 1 Piercing Weapon . | . . . . . Special Melee Weapon . | . . . . . Unidentified Prototypes 2 | . . . . 2 Parts Lost 12 | . 1 . 1 10 Power 2 | . . . 1 1 Propulsion 4 | . 1 . . 3 Utility 2 | . . . . 2 Weapon 4 | . . . . 4 Highest Loss Streak 6 | . 1 . 1 6 To Critical Strikes . | . . . . . Average Slot Usage (%) 98 | . 98 100 99 97 Engine 9 | . 14 14 13 7 Core 1 | . . . . 1 Treads 8 | . . . . 12 Wheel 12 | . 27 28 28 5 Device 13 | . 13 14 14 13 Storage 10 | . 14 14 14 9 Processor 5 | . . . . 8 Hackware 5 | . . . . 7 Protection 3 | . . . . 5 Energy Gun 3 | . 10 . . 2 Energy Cannon 6 | . . . . 9 Ballistic Gun 12 | . 16 26 27 7 Ballistic Cannon 2 | . . . . 4 Slashing Weapon 1 | . . . . 1 Naked Turns . | . . . . . Heaviest Build 52 | 15 15 13 15 52 Greatest Support 56 | 20 20 20 20 56 Greatest Overweight (x) 3 | 1 . . . 3 Average Overweight (x) . | . . . . . Largest Inventory Capacity 15 | 8 8 8 8 15 Average Capacity 11 | 7 8 8 8 13 Most Carried 15 | 8 8 8 8 15 Average Carried 10 | 5 7 8 7 12 Final Capacity 15 | 8 8 8 8 15 Final Carried 14 | 8 8 8 8 14 Class Distribution -------------------- 43% | Mutant 32% | Gunner 9% | Scavenger-Skirmisher 9% | Scavenger-Mutant 4% | Skirmisher Dominant Class ---------------- Mutant | -10/Materials Mutant | -10/Mines Mutant | -10/Subcaves Gunner | -8/Materials Resources | -11 -10 -10 -10 -8 ----------- Run | Yrd Mat Min Sub Mat Matter Collected 1670 | 347 129 . 61 1133 Remotely . | . . . . . Salvage Created 1732 | 151 175 . 61 1345 Parts 109 | 10 13 . 4 82 Haulers Intercepted 2 | . . . . 2 Recyclers Shooed . | . . . . . Parts Field Recycled . | . . . . . Retrieved Matter . | . . . . . Parts Self-Destructed 7 | . . . 7 . Prevented . | . . . . . Kills | -11 -10 -10 -10 -8 ------- Run | Yrd Mat Min Sub Mat Combat Hostiles Destroyed 34 | . 6 . 2 26 Melee 2 | . . . . 2 Guns 19 | . 6 . 2 11 Cannons 11 | . . . . 11 AOE 2 | . . . . 2 Classes Destroyed 12 | 2 3 . 1 6 Worker 1 | . . . . 1 Builder 4 | . . . . 4 Tunneler 4 | 4 . . . . Hauler 2 | . . . . 2 Recycler 4 | 1 . . . 3 Watcher 4 | . 2 . . 2 Swarmer 11 | . 3 . . 8 Grunt 14 | . 3 . . 11 Duelist 2 | . . . . 2 Sentry 4 | . . . . 4 Hunter 1 | . . . . 1 Subdweller 2 | . . . 2 . Best Kill Streak 6 | 3 3 . 1 6 Combat Bots Only 4 | . 3 . 1 4 Max Kills in Single Turn 2 | 1 1 . 1 2 Gunslinging . | . . . . . Exploded 1 | . . . . 1 Melee 1 | . . . . 1 Uniques/NPCs Destroyed . | . . . . . Combat | -11 -10 -10 -10 -8 -------- Run | Yrd Mat Min Sub Mat Hostile Shots Fired 290 | . 25 . 8 257 Missed 59 | . 3 . 2 54 Damage Taken 3285 | . 211 . 124 2950 Core 573 | . 20 . . 553 Absorbed by Shields . | . . . . . Redirected to Shielding 5 | . . . . 5 Core Remaining (%) 96 | 100 . . 92 . Volleys Fired 174 | 13 22 3 16 120 Largest 3 | 2 2 2 2 3 Hottest 185 | 70 100 120 130 185 Shots Fired 357 | 26 42 6 31 252 Gun 236 | 26 41 3 29 137 Cannon 110 | . . . . 110 Launcher 5 | . . . . 5 Special 6 | . 1 3 2 . Kinetic 205 | 13 21 3 29 139 Thermal 147 | 13 21 3 2 108 Explosive 5 | . . . . 5 Electromagnetic . | . . . . . Robot Hit Streak 10 | 7 6 . 7 10 Robot Miss Streak 7 | 2 2 . 1 7 Penetration Max 1 | . . . . 1 Secondary Targets 4 | . 1 . . 3 Max Gunslinging Chain 1 | . 1 . . 1 Shots Hit Robots 202 | 19 23 . 19 141 Core Hits 88 | 6 11 . 3 68 Critical Kills 2 | . 1 . 1 . Critical Parts Destroyed 2 | . . . 1 1 Critical Strikes 10 | 1 3 . 2 4 Burn 5 | 1 2 . . 2 Destroy 4 | . 1 . 2 1 Sever 1 | . . . . 1 Melee Attacks 12 | . . . . 12 Impact . | . . . . . Slashing 12 | . . . . 12 Piercing . | . . . . . Sneak Attacks . | . . . . . Combat Hostiles . | . . . . . Follow-up Attacks . | . . . . . Damage Inflicted 4131 | 240 301 . 248 3342 Guns 2262 | 240 301 . 248 1473 Cannons 1212 | . . . . 1212 Explosions 490 | . . . . 490 Melee 155 | . . . . 155 Ramming 12 | . . . . 12 Kinetic 2032 | 117 140 . 248 1527 Thermal 1442 | 123 161 . . 1158 Explosive 490 | . . . . 490 Electromagnetic . | . . . . . Impact . | . . . . . Slashing 155 | . . . . 155 Piercing . | . . . . . Highest Corruption . | . . . . . Average Corruption . | . . . . . Corruption Purged . | . . . . . Corruption Blocked . | . . . . . Overload Shots . | . . . . . Overflow Damage 41 | . . . . 41 Projectiles 36 | . . . . 36 Explosions 5 | . . . . 5 Melee . | . . . . . Knockbacks 5 | . . . . 5 Impact 1 | . . . . 1 Kinetic 3 | . . . . 3 Secondary 1 | . . . . 1 Self-Inflicted Damage 86 | . . . . 86 Shots 2 | . . . . 2 Rammed 3 | . . . . 3 Targets Rammed 3 | . . . . 3 Kicked . | . . . . . Crushed . | . . . . . Highest Temperature 431 | 45 75 40 . 431 Average Temperature 111 | 17 24 24 . 134 Received Heat Transfer 1335 | . 75 . 36 1224 Effects 16 | . . . . 16 Shutdowns 1 | . . . . 1 Energy Bleed 4 | . . . . 4 Interference 6 | . . . . 6 Matter Decay 1 | . . . . 1 Short Circuit 1 | . . . . 1 Damage (major) 3 | . . . . 3 Siege Activations . | . . . . . Robots Corrupted . | . . . . . Combat Hostiles . | . . . . . Parts Fried . | . . . . . Impact Corruptions 1 | . . . . 1 Robots Melted . | . . . . . Combat Hostiles . | . . . . . Parts Melted 7 | 1 1 . . 5 Heat Transferred 3624 | 444 629 . . 2551 Parts Sabotaged . | . . . . . Parts Stolen . | . . . . . Parts Stripped . | . . . . . Power Chain Reactions . | . . . . . Alert | -11 -10 -10 -10 -8 ------- Run | Yrd Mat Min Sub Mat Peak Influence 371 | 25 228 88 . 371 Initial 88 | . 16 88 . . Average 145 | 10 137 88 . 161 Maximum Alert Level 1 | . 1 . . 1 Low Security (%) 63 | 100 96 100 . 53 Level 1 36 | . 3 . . 46 Level 2 . | . . . . . Level 3 . | . . . . . Level 4 . | . . . . . Level 5 . | . . . . . High Security . | . . . . . Max Security . | . . . . . Squads Dispatched 4 | . 1 . . 3 Investigation 1 | . 1 . . . Extermination . | . . . . . Reinforcement 2 | . . . . 2 Assault . | . . . . . Garrison 1 | . . . . 1 Intercept . | . . . . . Searches Triggered . | . . . . . Construction Impeded . | . . . . . Haulers Reinforced . | . . . . . Active Scanning Responses . | . . . . . Cargo Convoy Interrupts . | . . . . . Stealth | -11 -10 -10 -10 -8 --------- Run | Yrd Mat Min Sub Mat Distress Signals 5 | . 1 . . 4 Communications Jammed . | . . . . . Distress Signals . | . . . . . Times Spotted 61 | . 10 . 1 50 Peak Tracking Total 9 | . 3 . 1 9 Tactical Retreats 9 | . 1 . . 8 Traps | -11 -10 -10 -10 -8 ------- Run | Yrd Mat Min Sub Mat Traps Triggered . | . . . . . Indirectly . | . . . . . Trap Hack Attempts . | . . . . . Triggered . | . . . . . Disarmed . | . . . . . Reprogrammed . | . . . . . Reused . | . . . . . Traps Extracted . | . . . . . Installed . | . . . . . Triggered . | . . . . . Machines | -11 -10 -10 -10 -8 ---------- Run | Yrd Mat Min Sub Mat Machines Disabled 4 | . . . . 4 Max in Single Turn 2 | . . . . 2 Garrison Access 1 | . . . . 1 Machines Repaired . | . . . . . Machines Dismantled . | . . . . . Machines Sabotaged . | . . . . . Overloaded Fab Kills . | . . . . . Hacking | -11 -10 -10 -10 -8 --------- Run | Yrd Mat Min Sub Mat Machines Accessed 11 | . 5 . . 6 Terminals 7 | . 3 . . 4 Fabricators . | . . . . . Repair Stations . | . . . . . Recycling Units 3 | . 2 . . 1 Scanalyzers . | . . . . . Garrison Access 1 | . . . . 1 Total Hacks 35 | . 13 . . 22 Successful 17 | . 7 . . 10 Failed 18 | . 6 . . 12 Catastrophic . | . . . . . Database Lockouts . | . . . . . Manual 12 | . 3 . . 9 Terminals 30 | . 10 . . 20 Fabricators . | . . . . . Repair Stations . | . . . . . Recycling Units 4 | . 3 . . 1 Scanalyzers . | . . . . . Garrison Access 1 | . . . . 1 Terminal Hacks 13 | . 5 . . 8 Record 1 | . . . . 1 Robot Analysis 1 | . . . . 1 Prototype ID Bank 1 | . . . . 1 Branch Access Points 1 | . 1 . . . Terminal Index 1 | . 1 . . . Alert Level 1 | . 1 . . . Unreport Threat 1 | . . . . 1 Locate Traps 2 | . . . . 2 Maintenance Status 2 | . 1 . . 1 Hauler Manifests 1 | . 1 . . . Zone Layout 1 | . . . . 1 Fabricator Hacks . | . . . . . Repair Station Hacks . | . . . . . Recycling Unit Hacks 3 | . 2 . . 1 Report Inventory 1 | . 1 . . . Retrieve Components 2 | . 1 . . 1 Scanalyzer . | . . . . . Garrison Access Hacks 1 | . . . . 1 Seal Access 1 | . . . . 1 Unauthorized Hacks . | . . . . . Terminals . | . . . . . Fabricators . | . . . . . Repair Stations . | . . . . . Recycling Units . | . . . . . Scanalyzers . | . . . . . Garrison Access . | . . . . . Data Cores Recovered . | . . . . . Used . | . . . . . Hacking Detections 7 | . 3 . . 4 Full Trace Events 1 | . 1 . . . Feedback Events . | . . . . . Feedback Blocked . | . . . . . Robot Schematics Acquired . | . . . . . Robots Built . | . . . . . Authchips . | . . . . . Time . | . . . . . Total Robot Build Rating . | . . . . . Part Schematics Acquired . | . . . . . Parts Built . | . . . . . Authchips . | . . . . . Time . | . . . . . Total Part Build Rating . | . . . . . Parts Repaired . | . . . . . Time . | . . . . . Parts Recycled . | . . . . . Recycled Matter . | . . . . . Retrieved Matter . | . . . . . Retrieved Components 17 | . 8 . . 9 Parts Scanalyzed . | . . . . . Part Schematics Acquired . | . . . . . Parts Damaged . | . . . . . Bothacking | -11 -10 -10 -10 -8 ------------ Run | Yrd Mat Min Sub Mat Used RIF Installer . | . . . . . Robots Hacked . | . . . . . Non-combat . | . . . . . Combat . | . . . . . Robot Hacks Applied . | . . . . . Relay Couplers Released . | . . . . . Fabnet Peak Effective % . | . . . . . Robots Rewired . | . . . . . Allies Hacked . | . . . . . Hacks Repelled . | . . . . . Allies | -11 -10 -10 -10 -8 -------- Run | Yrd Mat Min Sub Mat Total Allies . | . . . . . Largest Group . | . . . . . Highest-Rated Group . | . . . . . Highest-Rated Ally . | . . . . . Total Orders . | . . . . . Ally Attacks . | . . . . . Total Damage . | . . . . . Kills . | . . . . . Allies Corrupted . | . . . . . Allies Melted . | . . . . . Intel | -11 -10 -10 -10 -8 ------- Run | Yrd Mat Min Sub Mat Robot Analysis Total 1 | . . . . 1 Derelict Logs Recovered 2 | . . 2 . . Drone Launches . | . . . . . Drone Recoveries . | . . . . . Exploration | -11 -10 -10 -10 -8 ------------- Run | Yrd Mat Min Sub Mat Turns Passed 3032 | 172 348 78 470 1964 Spaces Moved 1657 | 83 308 74 474 718 Core 2 | 2 . . . . Treads 490 | . . . . 490 Legs 36 | 36 . . . . Wheels 1129 | 45 308 74 474 228 Hover . | . . . . . Flight . | . . . . . Fastest Speed 50 | 50 80 80 80 80 Average Speed 113 | 119 80 80 80 153 Slowest Speed 240 | 190 80 80 80 240 Overloaded Moves . | . . . . . Propulsion Burnouts . | . . . . . Robots Hopped . | . . . . . Cave-ins Triggered . | . . . . . Exploration Rate (%) 36 | 5 60 29 31 57 Regions Visited 4 Branch Regions 2 Pre-discovered Areas 2 | . . 2 . . Known Exits Taken 1 | . 1 . . . Unknown Exits Taken 3 | 1 . 1 1 . Scrap Searched . | . . . . . Spaces Dug 29 | . 1 . . 28 Terrain Destroyed 102 | . 1 . . 101 Melee 4 | . . . . 4 Projectile 48 | . 1 . . 47 AOE 50 | . . . . 50 Terrain Rammed . | . . . . . Walls Destroyed . | . . . . . Machines Disabled . | . . . . . Actions | -11 -10 -10 -10 -8 --------- Run | Yrd Mat Min Sub Mat Total 2455 | 125 367 80 529 1354 Wait 406 | 7 16 3 24 356 Move 1653 | 82 307 73 473 718 Hop . | . . . . . Pick Up 51 | 9 6 . 4 32 Fast Attach 34 | 8 2 . . 24 Attach 17 | . 1 . 1 15 Detach 5 | 1 1 . . 3 Swap 48 | 3 4 1 7 33 Drop 52 | 2 8 . 4 38 Fire 174 | 13 22 3 16 120 Melee 12 | . . . . 12 Ram . | . . . . . Kick . | . . . . . Crush 3 | . . . . 3 Escape Stasis . | . . . . . Rewire . | . . . . . Trap . | . . . . . Miscellaneous . | . . . . . Route ------- -11/Scrapyard -10/Materials (discovered 3 exits: [*Mat] / *Min x2) -10/Mines -10/Subcaves -8/Materials History --------- Turn | Location | Event 39 | -11/Scrapyard | Discovered new exit (range 16) 173 | -11/Scrapyard | Entered Materials 198 | -10/Materials | Discovered new exit (range 6) 248 | -10/Materials | Identified exit to Mines 304 | -10/Materials | Build established: Mutant 388 | -10/Materials | Discovered new exit (range 15) 521 | -10/Materials | Entered Mines 530 | -10/Mines | Learned location of Recycling (-9) 547 | -10/Mines | Learned location of Storage (-9) 598 | -10/Mines | Discovered new exit (range 3) 599 | -10/Mines | Entered Subcaves 736 | -10/Subcaves | A swath of the cavern ceiling suddenly collapsed 771 | -10/Subcaves | Discovered new exit (range 10) 791 | -10/Subcaves | Shifting Twisted Machinery released Sub. Machine Gun 797 | -10/Subcaves | Shifting Twisted Machinery released Battle Rifle 1069 | -10/Subcaves | Entered Materials 1069 | -8/Materials | Evolved 4 slots: Utility x3, Weapon x1 1250 | -8/Materials | Garrison activated, responded to threat 1750 | -8/Materials | Build established: Gunner 2154 | -8/Materials | Core integrity fell below 50% 2219 | -8/Materials | Lost 6 parts (1p2n1u2w) 2306 | -8/Materials | Core integrity fell below 20% 2350 | -8/Materials | Lost 4 parts (1n1u2w) 3033 | -8/Materials | Destroyed by G-47 Trooper with Particle Gun Last Messages --------------- 02886_ Acquired 3 matter. 02969_ Sub. Optics shoots sparks and powers down. 02976_ O-16 Technician: "IFF HANDSHAKE FAILED. SECURING TERMINAL." 02976_ Destroyed Datajack. 02976_ Terminal disabled. 02980_ O-16 Technician uses terminal to summon reinforcements. 02980_ ALERT: Hostiles spotted, dispatching reinforcements to Terminal M005. 02980_ O-16 Technician locks terminal. 03000_ Dropped Broken Sub. Optics. 03017_ G-47 Trooper knocked back. 03022_ W-25 Informer sends out distress signal. 03027_ Processing Tank disabled. 03027_ G-47 Trooper knocked back. 03027_ G-47 Trooper destroyed. 03028_ G-47 Trooper misfires. 03033_ Overheating: System interference. 03033_ Assault Cannon temporarily disabled. Map ----- +----------------------------------------------------+ | ???????????????????????????????? | | ???????????????????????????????? | | ???????????????????????????????? | | ???????????????????????????????? | | ???????????????????????????????? | | ???????????????????????????????? | | ???????????????????????????????? | | ????????????????????? ???????? | | ????????????????????# ?##????? | | ????????????????????# ? "????? | | ????????????????????# ? ????? | | ????????????????????# # ????? | | ????????????????????# + ????? | | ????????????????????# # ????? | | ????????????????????# # ????? | | ????????????????????# #;#####? | | ????????????????????# # # | | ????????????????????# # """ # | | ????????????????????# # "" # | | ????????????????????+ % # %""" # | | ????????????????????# ;% "" # | | ????????????????????# ;* """ # | | ????????????????????# %#g # | | ?????????????######## # """ # | | ???########### # # """ # | | ???# #[! [ # #@ """ # | | ???# """ """ #[! + # """ # | | ???# """ """ #!! # # """ # | | ???# """ """ # # # # | | ???# # # ######## | | ???# *"#+##### #??????? | | ???# ##?????# #??????? | | ???# #??????" "??????? | | ???#+###+###### ##### / ?????? | | ???# ^ " ?????? | | #### # ????? | | "" ####???? | | ########+##### ] "T" ??????? | | ?????????????????? ??????? | | ???????????????????? ??????? | | ????????????????????? ??????? | | ?????????????????????? ?????? | | ?????????????????????? ???????? | | ???????????????????????????????? | | ???????????????????????????????? | | ???????????????????????????????? | | ???????????????????????????????? | | ???????????????????????????????? | | ???????????????????????????????? | | ???????????????????????????????? | +----------------------------------------------------+ Best States ------------- Heat Dissipation 45 Energy Generation 16 Energy Capacity 290 Matter Stores 300 Matter Capacity 300 Sight Range 21 Robot Scan Range 14 Terrain Scan Density 10 ECM Strength 1 Additional Mass Support 6 Armor Coverage 150 Core Shielding 20 Evasion (%) 44 Targeting Accuracy 6 Recoil Reduction 2 Offensive Hacking 10 Item Schematics ----------------- None Robot Schematics ------------------ None Fabricated ------------ Nothing Alien Tech Used ----------------- None Achievements -------------- None Challenges ------------ None Game ------ Seed ThrusterFortressStick Manual? 0 Play Time 00:46:38 Cumulative 40.3 hours Start 2024.04.24 @ 21:20:53 End 2024.04.24 @ 23:33:42 Sessions 2 Manual Loads 0 Difficulty Rogue Special Mode None Game No. 30 Rogue 30 Adventurer 0 Explorer 0 Win Type - Total 0 Types 0/0/0/0/0/0/0/0/0 Lore% 25 Gallery% 40 Achievement% 31 Wizard Run 0 Options --------- Layout 2 ASCII 0 Keyboard 0 Movement Numpad Keybinds 0 Fullscreen 0 Font 24/Tamsyn Map View 59x48 Zoom Use 6% Tactical HUD 1 Map Filters NONE Filters NONE Steam 1 RUN: 87cb6191-c140-4c96-a58f-200f604bc1ef